Supplier,NetAmount,ServiceArea,MCC,Typeofexpenditure,PaymentDate
ARGOS LTD,25.00,CAT,5310,Section 17,29/01/2021
AMZNMktplace,39.95,Bradley Resource Centre,5999,Equipment - Purchase,29/01/2021
SEVERN TRENT WATER,50.27,LAC Transitions Team,4900,Accommodation Costs,29/01/2021
POST OFFICE COUNTER,3.20,Bradley Resource Centre,9402,Comms - Postage,29/01/2021
NoteMachine ATM,30.00,LAC Transitions Team,6011,Subsistence,29/01/2021
N INVESTMENTS LTD,358.33,LAC Transitions Team,4225,Client Allowances,29/01/2021
A2BGo Carz,7.50,Power2 Team,4121,Client Transport,29/01/2021
A2BGo Carz,8.80,Power2 Team,4121,Client Transport,29/01/2021
CUMMINGS BROTHERS LOCK,84.00,LAC Transitions Team,7399,Accommodation Costs,29/01/2021
A2BGo Carz,6.80,Power2 Team,4121,Client Transport,29/01/2021
A2BGo Carz,6.80,Power2 Team,4121,Client Transport,29/01/2021
A2BGo Carz,4.00,Power2 Team,4121,Client Transport,29/01/2021
A2BGo Carz,7.60,Youth Offending Team,4121,Client Transport,29/01/2021
A2BGo Carz,6.80,Power2 Team,4121,Client Transport,29/01/2021
A2BGo Carz,5.90,Power2 Team,4121,Client Transport,29/01/2021
A2BGo Carz,9.70,Power2 Team,4121,Client Transport,29/01/2021
A2BGo Carz,7.50,Power2 Team,4121,Client Transport,29/01/2021
A2BGo Carz,4.00,Power2 Team,4121,Client Transport,29/01/2021
A2BGo Carz,5.60,Youth Offending Team,4121,Client Transport,29/01/2021
A2BGo Carz,7.60,Youth Offending Team,4121,Client Transport,29/01/2021
ZOOM.US 888-799-9666,13.17,Talk English,4814,Subscriptions,29/01/2021
CITY OF WOLVERHAMPTON,27.00,Looked After Team 2,9399,Services - Fees and Charges,29/01/2021
ARGOS LTD,-10.49,LAC Transitions Team,5310,Client Allowances,29/01/2021
WP-CENTRAL TAXIS L,11.60,Looked After Team 2,4121,Client Transport,29/01/2021
ARGOS LTD,352.93,LAC Transitions Team,5310,Client Allowances,29/01/2021
PO PRINCE'S END 1535,10.00,LAC Transitions Team,6011,Client Allowances,29/01/2021
TOTALSHEETMUSIC.COM,101.35,Music Support Team,5192,Books,29/01/2021
BRITISH GAS OTP,495.51,Winter Grant,4900,Section 17,29/01/2021
AMZNMktplace,98.19,Northicote Farm,5999,Protective Clothing,29/01/2021
SPEEDY ASSET SERVICES,"5,389.20",COVID19 Track and Trace,7394,Equipment - Purchase,29/01/2021
UOM STORE,50.00,Healthy Ageing,8220,Training Expenses,29/01/2021
Amazon.co.uk MV9XG6DS4,66.00,COVID19 Track and Trace,5969,Equipment - Purchase,29/01/2021
Amazon.co.uk MV6R49D74,66.00,COVID19 Track and Trace,5969,Equipment - Purchase,29/01/2021
Amazon.co.uk MV5XP1DD4,66.00,COVID19 Track and Trace,5969,Equipment - Purchase,29/01/2021
Amazon.co.uk MV4XP6DQ4,66.00,COVID19 Track and Trace,5969,Equipment - Purchase,29/01/2021
Amazon.co.uk MV2X08DO4,66.00,COVID19 Track and Trace,5969,Equipment - Purchase,29/01/2021
Amazon.co.uk MV2XJ6DD4,66.00,COVID19 Track and Trace,5969,Equipment - Purchase,29/01/2021
Amazon.co.uk MV2XC7DL4,66.00,COVID19 Track and Trace,5969,Equipment - Purchase,29/01/2021
Amazon.co.uk MV1X93DZ4,66.00,COVID19 Track and Trace,5969,Equipment - Purchase,29/01/2021
Amazon.co.uk MV0X74DQ4,22.00,COVID19 Track and Trace,5969,Equipment - Purchase,29/01/2021
SCREWFIX DIRECT,59.53,Cemeteries,5211,Protective Clothing,29/01/2021
SCREWFIX DIR LTD,26.63,Cemeteries,5211,Protective Clothing,29/01/2021
COSTA COFFEE 43040010,8.10,LAC Transitions Team,5814,-,29/01/2021
FACEBK NYWGN2KAR2,500.00,Communications & Marketing - General,7311,R4317,29/01/2021
DIXONS FAMILY BUTCHERS,249.00,Bradley Resource Centre,5499,Provisions (Not for resale),29/01/2021
CUMMINGS BROTHERS LOCK,4.17,Specialist Support Service - North,7399,Equipment - Purchase,29/01/2021
ROOKERY Sainsburys Ba,20.00,LAC Transitions Accommodation,6011,Client Allowances,29/01/2021
Amazon Music MV61E2DV4,3.99,Head of Service Specialist Int Support,5735,-,29/01/2021
RAYTON ELECT WSALERS L,44.10,Cleaning of Buildings - General,5999,-,28/01/2021
WWW.BSIGROUP.COM,432.00,UTC Wolverhampton,7399,Publications,28/01/2021
AMZNMktplace,20.82,LAC Transitions Accommodation,5999,Equipment - Health and Safety,28/01/2021
Amazon.co.uk MV8SJ6Q44,16.19,LAC Transitions Accommodation,5969,Equipment - Health and Safety,28/01/2021
Amazon.co.uk MV8WV06Z4,11.62,Global Budgets,5969,Books,28/01/2021
HOMEBASE LTD 103,4.58,Specialist Support Service - North,5200,Equipment - R & M,28/01/2021
BLACK COUNTRY SKIP HIR,256.00,CIN/CP Social Work Unit - Area 7,7394,Section 17,28/01/2021
Amazon.co.uk MV2J766P4,26.97,Road Safety,5969,Equipment - Purchase,28/01/2021
RICS SUBS UK CYBS,186.00,Workforce Development,8699,Training Expenses,28/01/2021
AMZNMktplace,70.77,Cycling Schemes - Bikeability,5999,Equipment - Purchase,28/01/2021
POST OFFICE COUNTER,37.60,Ernest Bold Court,9402,Provisions (Not for resale),28/01/2021
SHEETMUSICDIRECT.COM,48.99,Music Support Team,5733,Books,28/01/2021
ARGOS LTD,63.33,Winter Grant,5310,Section 17,28/01/2021
ARGOS LTD,83.33,Winter Grant,5310,Section 17,28/01/2021
WWW.ABBEYDALEDIRECT.CO,-75.00,Northicote Farm,7299,Protective Clothing,28/01/2021
ARGOS LTD,306.62,LAC Transitions Team,5310,Client Allowances,28/01/2021
P & P CENTRAL TAXIS,-50.00,LAC Transitions Team,4121,Independant Living Allowance,28/01/2021
P & P CENTRAL TAXIS,-50.00,LAC Transitions Team,4121,Independant Living Allowance,28/01/2021
P & P CENTRAL TAXIS,-50.00,LAC Transitions Team,4121,Independant Living Allowance,28/01/2021
E C STRAITON,36.09,Northicote Farm,0742,Professional fees,28/01/2021
Amazon.co.uk MV2ZI66K4,12.06,Northicote Farm,5969,Comms - Mobile Telephones,28/01/2021
AMZNMKTPLACE AMAZON.CO,4.98,Northicote Farm,5999,Comms - Mobile Telephones,28/01/2021
HM PASSPORT OFFICE,63.50,LAC Transitions Team,9399,-,28/01/2021
HM PASSPORT OFFICE,95.00,LAC Transitions Team,9399,-,28/01/2021
HYGIENE 4 LESS,999.00,Civic Centre,2842,-,28/01/2021
HIGHSPEEDTRAINING.CO.U,20.00,Power2 Team,8244,Direct Work With Children,28/01/2021
A2BGo Carz,26.00,Regional Adoption Agency,4121,Client Transport,28/01/2021
FUNKYPIGEON.COM,3.64,Regional Adoption Agency,5947,R4007,28/01/2021
PREMIER INN,46.67,Private Hire Vehicles,3811,Accommodation Costs,28/01/2021
CHARTERED INSTITUTE OF,990.00,Visitor Economy - Development,8398,Training Expenses,28/01/2021
CUMMINGS BROTHERS LOCK,46.00,Specialist Support Service - North,7399,Equipment - Purchase,28/01/2021
WM MORRISONS STORE,1.50,Ernest Bold Court,5411,Provisions (Not for resale),28/01/2021
WM MORRISONS STORE,5.05,Ernest Bold Court,5411,Provisions (Not for resale),28/01/2021
Trainline,17.88,Court Team,4112,Section 17,28/01/2021
Trainline,17.88,Court Team,4112,Section 17,28/01/2021
thetrainline.com,17.88,Court Team,4112,Section 17,28/01/2021
TAHDAH VERIFIED,133.33,Aldersley Leisure Village,5734,Professional fees,28/01/2021
A2BGo Carz,3.50,Youth Offending Team,4121,Client Transport,28/01/2021
A2BGo Carz,3.50,Youth Offending Team,4121,Client Transport,28/01/2021
A2BGo Carz,3.50,Youth Offending Team,4121,Client Transport,28/01/2021
A2BGo Carz,3.50,Youth Offending Team,4121,Client Transport,28/01/2021
A2BGo Carz,31.30,Youth Offending Team,4121,Client Transport,28/01/2021
CO-OPERATIVE FOOD,17.00,LAC Transitions Team,5411,Client Allowances,28/01/2021
CITY OF WOLVERHAMPTON,11.00,LAC Team,9399,Financial Assistance In Exceptional Circ,28/01/2021
Amazon.co.uk MV61V46U4,194.74,Language Studies Delivery Area,5969,Books,28/01/2021
Amazon.co.uk MV7922604,82.39,Language Studies Delivery Area,5969,Books,28/01/2021
POST OFFICE COUNTER,17.60,Business Support Services,9402,Comms - Postage,28/01/2021
WWW.WOLVERHAMPTON.GOV.,74.34,LAC Transitions Accommodation,9399,Client Allowances,28/01/2021
A2BGo Carz,7.50,Power2 Team,4121,Client Transport,27/01/2021
A2BGo Carz,8.40,Youth Offending Team,4121,Client Transport,27/01/2021
A2BGo Carz,7.50,Youth Offending Team,4121,Client Transport,27/01/2021
A2BGo Carz,7.50,Power2 Team,4121,Client Transport,27/01/2021
A2BGo Carz,3.50,Power2 Team,4121,Client Transport,27/01/2021
AJAYS HARDWARE,9.17,LAC Transitions Team,5251,Client Allowances,27/01/2021
CITY OF WOLVERHAMPTON,16.00,LAC Team,9399,Financial Assistance In Exceptional Circ,27/01/2021
CITY OF WOLVERHAMPTON,38.00,Looked After Team 2,9399,Financial Assistance In Exceptional Circ,27/01/2021
Amazon.co.uk MV6MY68P4,29.70,Language Studies Delivery Area,5969,Books,27/01/2021
POST OFFICE COUNTER,192.00,Discretionary Fund,9402,Comms - Postage,27/01/2021
HOMEBASE LTD 103,41.67,Bradley Resource Centre,5200,Cleaning Supplies and Materials,27/01/2021
CITY OF WOLVERHAMPTON,82.00,Centralised External Legal Costs,9399,Services - Fees and Charges,27/01/2021
EE TOP UP VESTA,10.00,School Crossing Patrol,4814,Comms - Mobile Telephones,27/01/2021
TOTALSHEETMUSIC.COM,68.70,Music Support Team,5192,Books,27/01/2021
POST OFFICE COUNTER,2.25,Fleet Management,9402,Comms - Postage,27/01/2021
TFM FARM   COUNTRY,39.90,Northicote Farm,0763,Provisions (Not for resale),27/01/2021
MCDONALDS,3.49,Key to Inspiration,5814,Client Allowances,27/01/2021
ARGOS LTD,14.28,LAC Transitions Team,5310,Client Allowances,27/01/2021
WWW.WOLVERHAMPTON.GOV.,248.04,LAC Transitions Team,9399,Accommodation Costs,27/01/2021
ROYAL BK OF SCOTLAND,250.00,Power2 Team,6011,Direct Work With Children,27/01/2021
Twitter Online Ads,60.00,Marketing of Exhibitions,7311,R4317,27/01/2021
THE RANGE,4.08,LAC Transitions Accommodation,5311,Accommodation Costs,27/01/2021
ASDA GROCERIES ONLINE,-.02,Key to Inspiration,5411,Client Allowances,27/01/2021
ASDA GROCERIES ONLINE,152.69,Key to Inspiration,5411,Client Allowances,27/01/2021
SEVERN TRENT WATER,37.62,LAC Transitions Team,4900,Accommodation Costs,27/01/2021
SEVERN TRENT WATER,61.17,LAC Transitions Team,4900,Accommodation Costs,27/01/2021
SEVERN TRENT WATER,54.44,LAC Transitions Team,4900,Accommodation Costs,27/01/2021
CITY OF WOLVERHAMPTON,38.00,Court Team,9399,Section 17,27/01/2021
PREMIER INN,66.00,Regional Adoption Agency,3811,-,27/01/2021
WWW.STA.CO.UK,40.83,Aldersley Leisure Village,7999,Professional fees,27/01/2021
Amazon.co.uk MV1L79884,60.00,Corporate Parenting,5969,Direct Work With Children,27/01/2021
A2BGo Carz,3.50,Power2 Team,4121,Client Transport,27/01/2021
DVLA VEHICLE TAX,267.50,Fleet Management,9311,R3004,26/01/2021
POST OFFICE COUNTER,11.06,LAC Transitions Team,9402,Client Allowances,26/01/2021
GEN REGISTER OFFICE,14.00,LAC Transitions Team,9399,-,26/01/2021
OAKLAND,571.67,Destitute Plus,7011,Accommodation Costs,26/01/2021
OAKLAND,571.67,Destitute Plus,7011,Accommodation Costs,26/01/2021
NAMESCO,47.98,Economic Inclusion,4816,R4317,26/01/2021
GOOGLE  ADS9680351324,500.00,Communications & Marketing - General,5818,R4317,26/01/2021
ADOBE STOCK,19.99,Communications & Marketing - General,5734,Subscriptions,26/01/2021
W M MORRISONS.COM,247.84,Bradley Resource Centre,5411,Provisions (Not for resale),26/01/2021
Amazon.co.uk MV8JR45Q4,.00,Hospital Team,5969,Stationery,26/01/2021
CUMMINGS BROTHERS LOCK,72.00,LAC Transitions Team,7399,Accommodation Costs,26/01/2021
OAKLAND,315.00,NRPF,7011,Accommodation Costs,26/01/2021
PO BIRMINGHAM NEW RD01,41.67,LAC Transitions Team,6011,Client Allowances,26/01/2021
DNH GODADDY.COM EUROPE,109.72,Register Office,4816,-,26/01/2021
EUROFFICE.CO.UK,85.97,Youth Offending Team,5943,Equipment - Purchase,26/01/2021
APPLE.COM/BILL,9.99,Managing Director,5735,Computing - Purchase of Software,26/01/2021
ASDA GROCERIES ONLINE,48.43,Upper Pendeford Farm Childrens Home,5411,Provisions (Not for resale),26/01/2021
ELITE BUSINESS SYSTEMS,258.74,Discretionary Fund,4814,Computing - Purchase of Hardware,26/01/2021
ARGOS LTD,264.92,LAC Transitions Team,5310,Client Allowances,26/01/2021
WWW.WOLVERHAMPTON.GOV.,74.95,LAC Transitions Accommodation,9399,Client Allowances,26/01/2021
AMZNMKTPLACE AMAZON.CO,-15.20,SEN Special Education Admin,5999,Equipment - Purchase,26/01/2021
AMZNMktplace,20.78,SEN Special Education Admin,5999,Equipment - Purchase,26/01/2021
HALFORDS 0775,12.50,Independant Living Services,5940,Cleaning Supplies and Materials,26/01/2021
ST JOHN AMBULANCE,250.00,Workforce Development,8398,Training Expenses,26/01/2021
SHEETMUSICDIRECT.COM,109.99,Music Support Team,5733,Books,26/01/2021
CMP  Musicroom.com,40.50,Music Support Team,2741,Books,26/01/2021
MUSICNOTES.COM,3.77,Music Support Team,5733,Books,26/01/2021
SHELL ENERGY RETAIL LT,98.47,LAC Transitions Accommodation,4900,Client Allowances,26/01/2021
WWW.ABBEYDALEDIRECT.CO,75.00,Northicote Farm,7299,Protective Clothing,26/01/2021
AMZNMktplace,14.48,Key to Inspiration,5999,Client Allowances,25/01/2021
AMZNMKTPLACE AMAZON.CO,6.11,Key to Inspiration,5999,-,25/01/2021
PO BIRMINGHAM NEW RD01,80.00,LAC Transitions Team,6011,Independant Living Allowance,25/01/2021
SAINSBURYS 2198,2.86,LAC Transitions Team,5411,Client Allowances,25/01/2021
POST OFFICE COUNTER,13.70,LAC Transitions Team,9402,-,25/01/2021
TOOLSTATION UK,17.13,Civic Centre,5251,-,25/01/2021
UNITED CARPETS BEDS,172.00,Civic Centre,5713,-,25/01/2021
ARGOS LTD,83.93,Bradley Resource Centre,5310,Equipment - Purchase,25/01/2021
Snap  Ads,12.25,Marketing of Exhibitions,7311,R4317,25/01/2021
FREEPIK & FLATICON,7.64,Communications & Marketing - General,7333,Subscriptions,25/01/2021
Twitter Online Ads,60.00,Marketing of Exhibitions,7311,R4317,25/01/2021
Snap  Ads,16.03,Marketing of Exhibitions,7311,R4317,25/01/2021
GOOGLE  ADS5477893156,190.54,Regional Adoption Agency,7311,R4317,25/01/2021
FACEBK WW4JD27AR2,500.00,Communications & Marketing - General,7311,R4317,25/01/2021
Snap  Ads,15.07,Marketing of Exhibitions,7311,R4317,25/01/2021
W M MORRISONS.COM,188.40,Bradley Resource Centre,5411,Provisions (Not for resale),25/01/2021
ADOBE ID CREATIVE CLD,606.72,Document Centre - General,5734,Computing - Purchase of Software,25/01/2021
AWS EMEA,"-3,429.14",Strategic ICTS (ICT Serv Budget),7399,Computing - Purchase of Software,25/01/2021
AMZNMKTPLACE AMAZON.CO,7.49,Document Centre - General,5999,Materials,25/01/2021
UKN01371,150.00,LAC Transitions Team,6011,Client Allowances,25/01/2021
LOYD 37 CHURCH STREET,200.00,LAC Transitions Team,6011,Client Allowances,25/01/2021
ASDA GEORGE COM LEEDS,86.91,Winter Grant,5411,Section 17,25/01/2021
HERON FOODS FALLINGS P,14.31,LAC Transitions Team,5411,Client Allowances,25/01/2021
LOYD 37 CHURCH STREET,83.33,LAC Transitions Team,6011,Client Allowances,25/01/2021
PREMIER INN,116.00,Regional Adoption Agency,3811,-,25/01/2021
ARGOS LTD,53.29,LAC Transitions Team,5310,Client Allowances,25/01/2021
AMZNMKTPLACE AMAZON.CO,20.88,Youth Offending Team,5999,Equipment - Purchase,25/01/2021
AMZNMKTPLACE AMAZON.CO,7.12,Youth Offending Team,5999,Equipment - Purchase,25/01/2021
AMZNMKTPLACE AMAZON.CO,3.52,Youth Offending Team,5999,Equipment - Purchase,25/01/2021
A2BGo Carz,6.40,Power2 Team,4121,Client Transport,25/01/2021
A2BGo Carz,6.40,Power2 Team,4121,Client Transport,25/01/2021
AMZNMKTPLACE AMAZON.CO,35.75,Youth Offending Team,5999,Equipment - Purchase,25/01/2021
ARGOS LTD,89.99,LAC Transitions Team,5310,Client Allowances,25/01/2021
AMZNMKTPLACE AMAZON.CO,8.80,Youth Offending Team,5999,Equipment - Purchase,25/01/2021
HUGHES,103.33,LAC Transitions Team,5732,Client Allowances,25/01/2021
SAINSBURYS (2340),9.16,Condition Surveys,5411,Computing - Consumables,25/01/2021
AMZNMKTPLACE AMAZON.CO,37.65,Condition Surveys,5999,Equipment - Purchase,25/01/2021
ASDA GROCERIES ONLINE,-7.11,Duke Street Bungalows,5411,Provisions (Not for resale),25/01/2021
ASDA GROCERIES ONLINE,168.12,Duke Street Bungalows,5411,Provisions (Not for resale),25/01/2021
WIX.COM PREMIUM-PLAN,51.00,Technical Support,5817,Subscriptions,25/01/2021
HUGHES,416.67,LAC Transitions Team,5732,Client Allowances,25/01/2021
Wix.com,51.00,Technical Support,5817,Subsistence,25/01/2021
AMZNMKTPLACE AMAZON.CO,29.65,Global Budgets,5999,Books,25/01/2021
SAINSBURYS 2040,18.00,Duke Street Bungalows,5411,Equipment - Purchase,25/01/2021
SAINSBURYS 2040,44.49,Duke Street Bungalows,5411,Provisions (Not for resale),25/01/2021
RICS COM GBP CYBS,282.00,Workforce Development,8699,Training Expenses,25/01/2021
PAYPAL  WAMITAB,62.25,Workforce Development,8398,Books,25/01/2021
THE GEOLOGICAL SOCIETY,268.00,Workforce Development,5968,Training Expenses,25/01/2021
AMZNMktplace,19.99,Ernest Bold Court,5999,Provisions (Not for resale),25/01/2021
CURRYS ONLINE,20.82,Fleet Management,5732,Equipment - Purchase,25/01/2021
KARAOKE RECISIO,1.66,Music Support Team,5733,Computing - Purchase of Software,25/01/2021
DVLA VEHICLE TAX,167.50,Fleet Management,9311,R3004,22/01/2021
DVLA VEHICLE TAX,267.50,Fleet Management,9311,R3004,22/01/2021
DVLA VEHICLE TAX,267.50,Fleet Management,9311,R3004,22/01/2021
DVLA VEHICLE TAX,167.50,Fleet Management,9311,R3004,22/01/2021
DVLA VEHICLE TAX,267.50,Fleet Management,9311,R3004,22/01/2021
DVLA VEHICLE TAX,267.50,Fleet Management,9311,R3004,22/01/2021
DVLA VEHICLE TAX,267.50,Fleet Management,9311,R3004,22/01/2021
DVLA VEHICLE TAX,207.50,Fleet Management,9311,R3004,22/01/2021
DVLA VEHICLE TAX,267.50,Fleet Management,9311,R3004,22/01/2021
DVLA VEHICLE TAX,267.50,Fleet Management,9311,R3004,22/01/2021
DVLA VEHICLE TAX,267.50,Fleet Management,9311,R3004,22/01/2021
DVLA VEHICLE TAX,167.50,Fleet Management,9311,R3004,22/01/2021
DVLA VEHICLE TAX,167.50,Fleet Management,9311,R3004,22/01/2021
DVLA VEHICLE TAX,167.50,Fleet Management,9311,R3004,22/01/2021
DVLA VEHICLE TAX,167.50,Fleet Management,9311,R3004,22/01/2021
DVLA VEHICLE TAX,267.50,Fleet Management,9311,R3004,22/01/2021
DVLA VEHICLE TAX,167.50,Fleet Management,9311,R3004,22/01/2021
DVLA VEHICLE TAX,267.50,Fleet Management,9311,R3004,22/01/2021
DVLA VEHICLE TAX,267.50,Fleet Management,9311,R3004,22/01/2021
DVLA VEHICLE TAX,167.50,Fleet Management,9311,R3004,22/01/2021
AMZNMktplace,6.54,Power2 Team,5999,Direct Work With Children,22/01/2021
WWW.FIRST-RESCUE.CO.UK,552.00,Civic Centre,8299,-,22/01/2021
AMZNMktplace,33.29,Car Parks Operational Staff,5999,Equipment - Purchase,22/01/2021
Snap  Ads,14.73,Marketing of Exhibitions,7311,R4317,22/01/2021
CO-OPERATIVE FOOD,13.20,LAC Transitions Team,5411,Stationery,22/01/2021
Booze Corner,2.92,LAC Transitions Team,5411,Stationery,22/01/2021
SP   THE PANIC ROOM ON,25.00,LEP - Leadership & Management Programme,5734,Training Expenses,22/01/2021
ARGOS LTD,86.61,LAC Transitions Team,5310,Independant Living Allowance,22/01/2021
CardtronicsUK,66.67,LAC Transitions Team,6011,Independant Living Allowance,22/01/2021
AMZNMktplace,25.13,Bradley Resource Centre,5999,Services - Supplies & Services to users,22/01/2021
POST OFFICE COUNTER,11.15,Bert Williams Leisure Centre,9402,-,22/01/2021
ARGOS LTD,152.95,LAC Transitions Team,5310,Client Allowances,22/01/2021
ARGOS LTD,41.94,LAC Transitions Team,5310,Client Allowances,22/01/2021
ARGOS LTD,12.20,LAC Transitions Team,5310,Client Allowances,22/01/2021
A2BGo Carz,7.60,Youth Offending Team,4121,Client Transport,22/01/2021
A2BGo Carz,5.40,Power2 Team,4121,Client Transport,22/01/2021
A2BGo Carz,5.30,Power2 Team,4121,Client Transport,22/01/2021
A2BGo Carz,5.30,Power2 Team,4121,Client Transport,22/01/2021
A2BGo Carz,5.90,Power2 Team,4121,Client Transport,22/01/2021
A2BGo Carz,5.90,Power2 Team,4121,Client Transport,22/01/2021
A2BGo Carz,6.30,Power2 Team,4121,Client Transport,22/01/2021
A2BGo Carz,7.60,Youth Offending Team,4121,Client Transport,22/01/2021
LOYD 37 CHURCH STREET,25.00,LAC Transitions Team,6011,Client Allowances,22/01/2021
WP-CENTRAL TAXIS L,7.60,Looked After Team 2,4121,Client Transport,22/01/2021
TIPPERS WOLVERHAMPTON,41.69,Cleaning of Buildings - General,5072,-,22/01/2021
CITY OF WOLVERHAMPTON,16.00,Centralised External Legal Costs,9399,Services - Fees and Charges,22/01/2021
WWW.CIPFA.ORG.UK/PFMCO,345.00,Workforce Development,8699,Training Expenses,22/01/2021
WWW.WMCA.CO.UK,22.00,Planning,9399,-,22/01/2021
APPLE.COM/UK,10.00,Members Expenses,5732,Equipment - Purchase,22/01/2021
AMZNMktplace,7.03,Bradley Resource Centre,5999,Equipment - Purchase,21/01/2021
A2BGo Carz,3.50,Youth Offending Team,4121,Client Transport,21/01/2021
A2BGo Carz,3.50,Youth Offending Team,4121,Client Transport,21/01/2021
TVLICENSING.CO.UK,157.50,EIP Locality 6,7392,Equipment - Purchase,21/01/2021
NATWEST BANK,80.00,LAC Team,6011,Financial Assistance In Exceptional Circ,21/01/2021
POST OFFICE COUNTER,19.34,LAC Transitions Team,9402,Client Allowances,21/01/2021
JAMES LISTER & SONS LT,121.75,Cleaning of Buildings - General,5085,-,21/01/2021
Allpay  ACCORD HOUSING,73.67,LAC Transitions Accommodation,8398,Accommodation Costs,21/01/2021
Allpay  ACCORD HOUSING,500.00,LAC Transitions Accommodation,8398,Accommodation Costs,21/01/2021
AMZNMKTPLACE AMAZON.CO,44.11,Duke Street Bungalows,5999,R4010,21/01/2021
AMZNMKTPLACE AMAZON.CO,37.06,SEN Special Education Admin,5999,Equipment - Purchase,21/01/2021
B & Q 1243,3.92,Ernest Bold Court,5200,Provisions (Not for resale),21/01/2021
GENERAL GENETICS CORP,182.78,CIN/CP Social Work Unit - Area 5,8071,Professional fees,21/01/2021
ASDA GEORGE COM LEEDS,94.25,Winter Grant,5411,Equipment - Purchase,21/01/2021
WORKWEAR EXPRESS,22.54,Fleet Management,5137,Protective Clothing,21/01/2021
AMZNMktplace,19.87,Power2 Team,5999,Direct Work With Children,21/01/2021
WWW.WOLVERHAMPTON.GOV.,22.50,LAC Transitions Accommodation,9399,Accommodation Costs,21/01/2021
DEVLIN WHOLESALE LICHF,460.00,LAC Transitions Team,5713,Independant Living Allowance,21/01/2021
TOOLSTATION UK,6.58,Civic Centre,5251,-,21/01/2021
ZOOM.US 888-799-9666,98.76,Carers Support,4814,Computing - Purchase of Software,21/01/2021
ELITE BUSINESS SYSTEMS,"3,223.80",Strategic ICTS (ICT Serv Budget),4814,-,21/01/2021
NOVOTEL WOLVERHAMPTON,10.00,Mental Health Assessment & Care Mgmt,7011,-,21/01/2021
NOVOTEL WOLVERHAMPTON,80.50,Mental Health Assessment & Care Mgmt,7011,-,21/01/2021
NOVOTEL WOLVERHAMPTON,13.00,Mental Health Assessment & Care Mgmt,7011,-,21/01/2021
NOVOTEL WOLVERHAMPTON,59.00,Mental Health Assessment & Care Mgmt,7011,-,21/01/2021
B&M 497 - HS WOLVES,12.49,LAC Transitions Accommodation,5399,Accommodation Costs,21/01/2021
Snap  Ads,14.50,Marketing of Exhibitions,7311,R4317,21/01/2021
Twitter Online Ads,50.00,Marketing of Exhibitions,7311,R4317,21/01/2021
CUMMINGS BROTHERS LOCK,20.83,LAC Transitions Accommodation,7399,Accommodation Costs,21/01/2021
ROYAL BK OF SCOTLAND,40.00,LAC Transitions Accommodation,6011,Accommodation Costs,21/01/2021
Netflix Services UK Li,11.99,Key to Inspiration,4899,"Educ Trips, Holidays, Outings, Activity",21/01/2021
CO-OPERATIVE FOOD,1.25,LAC Transitions Team,5411,Client Allowances,21/01/2021
CardtronicsUK,150.00,LAC Transitions Team,6011,Client Allowances,21/01/2021
POST OFFICE COUNTER,34.25,LAC Transitions Team,9402,Client Allowances,21/01/2021
POST OFFICE COUNTER,15.30,LAC Transitions Team,9402,Client Allowances,21/01/2021
Dulux Decorator Centre,21.06,Technician,5198,Materials,21/01/2021
HOME BARGAINS,1.66,LAC Transitions Accommodation,5251,Accommodation Costs,20/01/2021
GEN REGISTER OFFICE,14.00,LAC Transitions Team,9399,-,20/01/2021
POST OFFICE COUNTER,2.25,LAC Transitions Team,9402,-,20/01/2021
Snap  Ads,14.41,Marketing of Exhibitions,7311,R4317,20/01/2021
FACEBK UGEWD2KAR2,500.00,Communications & Marketing - General,7311,R4317,20/01/2021
IKEA LTD SHOP ONLINE,365.00,LAC Transitions Team,5712,Client Allowances,20/01/2021
ASDA SUPERSTORE,2.50,LAC Transitions Accommodation,5411,Accommodation Costs,20/01/2021
ASDA GROCERIES ONLINE,-3.02,Key to Inspiration,5411,Client Allowances,20/01/2021
ASDA GROCERIES ONLINE,158.66,Key to Inspiration,5411,Client Allowances,20/01/2021
Amazon.co.uk MV6DW5AX4,19.76,LEP - Leadership & Management Programme,5969,Books,20/01/2021
WWW.BRISTOWSUTOR.C,.00,Revenues,9399,VAT,20/01/2021
WWW.BRISTOWSUTOR.C,.00,Revenues,9399,VAT,20/01/2021
IKEA LTD SHOP ONLINE,85.00,LAC Transitions Team,5712,Client Allowances,20/01/2021
AMZNMktplace,21.66,Bradley Resource Centre,5999,Catering,20/01/2021
AMZNMktplace,6.49,Bradley Resource Centre,5999,Catering,20/01/2021
SPECSAVERSEVOUGB-,850.00,Eye Test Vouchers (HR),8043,Equipment - Health and Safety,20/01/2021
A2BGo Carz,4.00,Power2 Team,4121,Client Transport,20/01/2021
A2BGo Carz,7.50,Power2 Team,4121,Client Transport,20/01/2021
A2BGo Carz,3.50,Power2 Team,4121,Client Transport,20/01/2021
A2BGo Carz,4.00,Power2 Team,4121,Client Transport,20/01/2021
A2BGo Carz,7.50,Power2 Team,4121,Client Transport,20/01/2021
A2BGo Carz,8.40,Youth Offending Team,4121,Client Transport,20/01/2021
A2BGo Carz,7.50,Youth Offending Team,4121,Client Transport,20/01/2021
POST OFFICE COUNTER,203.00,Youth Offending Team,9402,Comms - Postage,20/01/2021
AMZNMKTPLACE AMAZON.CO,28.30,LAC Transitions Team,5999,Client Allowances,20/01/2021
AMZNMKTPLACE AMAZON.CO,27.42,LAC Transitions Team,5999,Client Allowances,20/01/2021
POST OFFICE COUNTER,96.00,Discretionary Fund,9402,Comms - Postage,20/01/2021
ASDA SUPERSTORE,50.42,LAC Transitions Accommodation,5411,Client Allowances,20/01/2021
ROYAL WOLVERHAMPTON,2.50,MASH,7523,Parking Fees,20/01/2021
SurveyMonkey,320.00,SEN Early Years Team,7372,Equipment - Purchase,20/01/2021
WIX.COM PREMIUM-PLAN,93.13,Technical Support,5817,Subscriptions,20/01/2021
PREMIER INN,35.00,Private Hire Vehicles,3811,Accommodation Costs,20/01/2021
EE TOPUP  VESTA,10.00,School Crossing Patrol,4814,Comms - Mobile Telephones,20/01/2021
DVSA,102.50,Fleet Management,9399,MOT & HGV Tests,20/01/2021
AO RETAIL LIMITED,157.50,Cemeteries,5722,Equipment - Purchase,19/01/2021
ARGOS LTD,199.99,LAC Transitions Team,5310,Independant Living Allowance,19/01/2021
CURRYS ONLINE,299.99,LAC Transitions Team,5732,Independant Living Allowance,19/01/2021
NOVOTEL WOLVERHAMPTON,.50,Mental Health Assessment & Care Mgmt,7011,-,19/01/2021
NOVOTEL WOLVERHAMPTON,66.50,Mental Health Assessment & Care Mgmt,7011,-,19/01/2021
NOVOTEL WOLVERHAMPTON,305.00,Mental Health Assessment & Care Mgmt,7011,-,19/01/2021
Snap  Ads,14.96,Marketing of Exhibitions,7311,R4317,19/01/2021
Snap  Ads,16.26,Marketing of Exhibitions,7311,R4317,19/01/2021
SAINSBURYS (2340),81.08,Key to Inspiration,5411,Client Allowances,19/01/2021
AMZNMktplace,82.27,Key to Inspiration,5999,Provisions (Not for resale),19/01/2021
IKEA LTD SHOP ONLINE,727.50,Bilston Town Hall,5712,Equipment - Purchase,19/01/2021
AMZNMktplace,174.98,Bilston Town Hall,5999,Equipment - Purchase,19/01/2021
WWW.ICELAND.CO.UK,-10.76,Bradley Resource Centre,5411,Provisions (Not for resale),19/01/2021
WWW.ICELAND.CO.UK,128.74,Bradley Resource Centre,5411,Provisions (Not for resale),19/01/2021
PLANET APPLIANCE,180.00,LAC Transitions Team,5399,-,19/01/2021
PLANET APPLIANCE,200.00,LAC Transitions Team,5399,-,19/01/2021
FARNELL,-3.47,Technician,5065,Materials,19/01/2021
AMZNMKTPLACE AMAZON.CO,24.98,Revenues,5999,Equipment - Purchase,19/01/2021
ASDA GROCERIES ONLINE,-1.49,Ernest Bold Court,5411,Provisions (Not for resale),19/01/2021
ASDA GROCERIES ONLINE,2.20,Ernest Bold Court,5411,Provisions (Not for resale),19/01/2021
ASDA GROCERIES ONLINE,49.32,Ernest Bold Court,5411,Provisions (Not for resale),19/01/2021
BUYITDIRECT CO UK,227.87,LAC Transitions Team,5734,Independant Living Allowance,19/01/2021
OAKLAND,315.00,NRPF,7011,Accommodation Costs,19/01/2021
PO BIRMINGHAM NEW RD01,66.67,LAC Transitions Team,6011,Client Allowances,19/01/2021
ARGOS LTD,333.33,LAC Transitions Team,5310,Client Allowances,19/01/2021
ARGOS LTD,-24.12,LAC Transitions Team,5310,Client Allowances,19/01/2021
ARGOS LTD,24.12,LAC Transitions Team,5310,Client Allowances,19/01/2021
ARGOS LTD,24.12,LAC Transitions Team,5310,Client Allowances,19/01/2021
OREGANO,17.98,MASH,5814,Section 17,19/01/2021
WWW.WOLVERHAMPTON.GOV.,73.86,LAC Transitions Accommodation,9399,Client Allowances,19/01/2021
ALERT IT.CO.UK,444.40,Telecare,7393,Equipment - Purchase,19/01/2021
COMMUNICATE-ED,50.00,Inclusion Support,8299,Professional fees,19/01/2021
COMMUNICATE-ED,25.00,Inclusion Support,8299,Professional fees,19/01/2021
ASDA GROCERIES ONLINE,-4.00,Upper Pendeford Farm Childrens Home,5411,Provisions (Not for resale),19/01/2021
ASDA GROCERIES ONLINE,48.77,Upper Pendeford Farm Childrens Home,5411,Provisions (Not for resale),19/01/2021
COMMUNICATE-ED,50.00,Inclusion Support,8299,Professional fees,19/01/2021
EB  ONLINE TRAINING DE,180.00,Workforce Development,7399,Training Expenses,19/01/2021
AMZNMktplace,99.97,Ernest Bold Court,5999,Provisions (Not for resale),19/01/2021
NATWEST BANK,200.00,NRPF,6011,No Recourse to Public Funds,19/01/2021
AQUILA TRUCK CENTR,309.18,Fleet Management,7538,Equipment - Purchase,19/01/2021
AMZNMktplace,95.27,Northicote Farm,5999,Protective Clothing,19/01/2021
EB  ONLINE TRAINING RE,180.00,Workforce Development,7399,Training Expenses,18/01/2021
B&M 497 - HS WOLVES,25.57,Ernest Bold Court,5399,Provisions (Not for resale),18/01/2021
AMZNMKTPLACE AMAZON.CO,16.22,Ernest Bold Court,5999,Provisions (Not for resale),18/01/2021
CURRYS ONLINE,82.50,Fleet Management,5732,Equipment - Purchase,18/01/2021
AMZNMktplace,8.81,Specialist Support Service - North,5999,Equipment - Purchase,18/01/2021
PAYPAL  GOOGLE GOOGLE,1.32,Music Support Team,5815,Computing - Purchase of Software,18/01/2021
AMZNMktplace,29.16,Northicote Farm,5999,Clothing / Uniforms,18/01/2021
ASDAN,9.00,Corporate Parenting,8299,Books,18/01/2021
Amazon.co.uk MV38I9NR4,21.30,Inclusion Support,5969,Books,18/01/2021
PAYPAL  EBAY UK,91.66,Northicote Farm,5311,Protective Clothing,18/01/2021
Amazon.co.uk MV7I843P4,10.82,Power2 Team,5969,Direct Work With Children,18/01/2021
AMZNMKTPLACE AMAZON.CO,34.97,Power2 Team,5999,Direct Work With Children,18/01/2021
AMZNMKTPLACE AMAZON.CO,4.96,Power2 Team,5999,Direct Work With Children,18/01/2021
P & P CENTRAL TAXIS,50.00,LAC Transitions Team,4121,Independant Living Allowance,18/01/2021
P & P CENTRAL TAXIS,50.00,LAC Transitions Team,4121,Independant Living Allowance,18/01/2021
P & P CENTRAL TAXIS,50.00,LAC Transitions Team,4121,Independant Living Allowance,18/01/2021
Snap  Ads,14.89,Marketing of Exhibitions,7311,R4317,18/01/2021
RECOGN. EXPRESS,537.00,Arts Publicity,5947,R4317,18/01/2021
Eflorist,61.96,Key to Inspiration,5992,Provisions (Not for resale),18/01/2021
WM MORRISONS STORE,7.00,Bradley Resource Centre,5411,Equipment - Purchase,18/01/2021
Snap  Ads,16.26,Marketing of Exhibitions,7311,R4317,18/01/2021
AMZNMKTPLACE AMAZON.CO,99.99,Bilston Town Hall,5999,Equipment - Purchase,18/01/2021
BARKER&STONEHOUSE,797.50,Bilston Town Hall,5712,Equipment - Purchase,18/01/2021
WWW.GOPAK.CO.UK,"8,574.89",Bilston Town Hall,5712,Equipment - Purchase,18/01/2021
DIXONS FAMILY BUTCHERS,24.00,Bradley Resource Centre,5499,Provisions (Not for resale),18/01/2021
AMZNMktplace,195.85,Street Lighting Maintenance,5999,Materials,18/01/2021
AMZNMktplace,35.82,LAC Transitions Team,5999,Independant Living Allowance,18/01/2021
AMZNMKTPLACE AMAZON.CO,159.16,LAC Transitions Team,5999,Independant Living Allowance,18/01/2021
ARGOS LTD,168.28,LAC Transitions Team,5310,Independant Living Allowance,18/01/2021
AMZNMKTPLACE AMAZON.CO,24.98,LAC Transitions Team,5999,Independant Living Allowance,18/01/2021
E.ON ENERGY SOLUTIONS,129.91,LAC Transitions Team,4900,Accommodation Costs,18/01/2021
ARGOS LTD,73.93,Bradley Resource Centre,5310,Equipment - Purchase,18/01/2021
ARGOS LTD,238.29,LAC Transitions Team,5310,Client Allowances,18/01/2021
ARGOS LTD,270.95,LAC Transitions Team,5310,Client Allowances,18/01/2021
NoteMachine ATM,30.00,LAC Transitions Team,6011,Client Allowances,18/01/2021
ELITE BUSINESS SYSTEMS,47.97,Discretionary Fund,4814,Computing - Purchase of Hardware,18/01/2021
THE BOOK SERVICE LTD T,-84.44,Art Gallery,5942,-,18/01/2021
ALDI 77 778,20.94,MASH,5411,-,18/01/2021
Amazon.co.uk MV96E04K4,39.34,COVID19 Track and Trace,5969,Equipment - Purchase,15/01/2021
Amazon.co.uk MV86994B4,39.34,COVID19 Track and Trace,5969,Equipment - Purchase,15/01/2021
Amazon.co.uk MV8Z774V4,39.34,COVID19 Track and Trace,5969,Equipment - Purchase,15/01/2021
Amazon.co.uk MV8ZI9404,39.34,COVID19 Track and Trace,5969,Equipment - Purchase,15/01/2021
Amazon.co.uk MV76834B4,39.34,COVID19 Track and Trace,5969,Equipment - Purchase,15/01/2021
Amazon.co.uk MV76824U4,39.34,COVID19 Track and Trace,5969,Equipment - Purchase,15/01/2021
Amazon.co.uk MV66714F4,39.34,COVID19 Track and Trace,5969,Equipment - Purchase,15/01/2021
Amazon.co.uk MV4676474,39.34,COVID19 Track and Trace,5969,Equipment - Purchase,15/01/2021
Amazon.co.uk MV46N74K4,39.34,COVID19 Track and Trace,5969,Equipment - Purchase,15/01/2021
Amazon.co.uk MV46F24J4,39.34,COVID19 Track and Trace,5969,Equipment - Purchase,15/01/2021
Amazon.co.uk MV36624I4,39.34,COVID19 Track and Trace,5969,Equipment - Purchase,15/01/2021
Amazon.co.uk MV36G4474,39.34,COVID19 Track and Trace,5969,Equipment - Purchase,15/01/2021
Amazon.co.uk MV26X94T4,39.34,COVID19 Track and Trace,5969,Equipment - Purchase,15/01/2021
Amazon.co.uk MV0Z764X4,39.34,COVID19 Track and Trace,5969,Equipment - Purchase,15/01/2021
Amazon.co.uk MV86K6454,39.34,COVID19 Track and Trace,5969,Equipment - Purchase,15/01/2021
Amazon.co.uk MV8Z53424,39.34,COVID19 Track and Trace,5969,Equipment - Purchase,15/01/2021
Amazon.co.uk MV5Z364V4,39.34,COVID19 Track and Trace,5969,Equipment - Purchase,15/01/2021
Amazon.co.uk MV16K34X4,39.33,COVID19 Track and Trace,5969,Equipment - Purchase,15/01/2021
Amazon.co.uk MV16D54D4,39.34,COVID19 Track and Trace,5969,Equipment - Purchase,15/01/2021
Amazon.co.uk MV1ZU94V4,39.34,COVID19 Track and Trace,5969,Equipment - Purchase,15/01/2021
SCREWFIX DIRECT,4.98,Cemeteries,5211,Materials,15/01/2021
B&M 497 - HS WOLVES,3.32,LAC Transitions Accommodation,5399,Accommodation Costs,15/01/2021
ELITE BUSINESS SYSTEMS,"3,223.80",Strategic ICTS (ICT Serv Budget),4814,-,15/01/2021
APPLE.COM/UK,"2,394.00",Strategic ICTS (ICT Serv Budget),5732,-,15/01/2021
Snap  Ads,8.91,Marketing of Exhibitions,7311,R4317,15/01/2021
RECOGN. EXPRESS,537.00,Arts Publicity,5947,R4317,15/01/2021
NAMESCO,24.99,Marketing of Exhibitions,4816,R4317,15/01/2021
FACEBK JCCNS2BAR2,500.00,Communications & Marketing - General,7311,R4317,15/01/2021
SOIL ASSOCI INET,"1,090.00",Education Catering - General Overheads,8398,Catering,15/01/2021
W M MORRISONS.COM,286.34,Bradley Resource Centre,5411,Provisions (Not for resale),15/01/2021
Jessops,457.50,Communications & Marketing - General,5946,Equipment - Purchase,15/01/2021
DES LTD,429.20,Document Centre - General,7333,Materials,15/01/2021
Amazon.co.uk MV44Q4F24,12.81,LEP - Leadership & Management Programme,5969,Books,15/01/2021
AMZ Amazon.co.uk,-277.07,LAC Transitions Team,5999,Independant Living Allowance,15/01/2021
AMZNMKTPLACE AMAZON.CO,33.32,LAC Transitions Team,5999,Independant Living Allowance,15/01/2021
WOLVERHAMPTON CC,10.42,Youth Offending Team,7523,Parking Fees,15/01/2021
OAKLAND,180.00,NRPF,7011,Accommodation Costs,15/01/2021
ARGOS LTD,47.88,Key to Inspiration,5310,Equipment - Health and Safety,15/01/2021
AMZNMKTPLACE AMAZON.CO,64.42,Bradley Resource Centre,5999,Equipment - Purchase,15/01/2021
ARGOS LTD,299.99,LAC Transitions Team,5310,Client Allowances,15/01/2021
CITY OF WOLVERHAMPTON,11.00,Court Team,9399,Section 17,15/01/2021
SAINSBURYS (2340),30.50,EIP Locality 4,5411,-,15/01/2021
INTERFLORA BRITISH UNI,39.17,Fostering Team,5992,Gratuities,15/01/2021
APPLE.COM/BILL,2.08,Corporate Parenting,5815,Computing - Purchase of Software,15/01/2021
ARGOS LTD,310.79,LAC Transitions Team,5310,Client Allowances,15/01/2021
ARGOS LTD,155.22,LAC Transitions Team,5310,Client Allowances,15/01/2021
A2BGo Carz,6.60,Power2 Team,4121,Client Transport,15/01/2021
CITY OF WOLVERHAMPTON,11.00,Court Team,9399,Section 17,15/01/2021
A2BGo Carz,6.60,Power2 Team,4121,Client Transport,15/01/2021
ASDA STORES 7134,5.00,Upper Pendeford Farm Childrens Home,5411,Provisions (Not for resale),15/01/2021
ARGOS LTD,299.96,LAC Transitions Team,5310,Client Allowances,15/01/2021
AMZNMktplace,23.73,SEN Special Education Admin,5999,Equipment - Purchase,15/01/2021
AMZNMKTPLACE AMAZON.CO,23.32,SEN Sensory Inclusion,5999,Equipment - Purchase,15/01/2021
GOVERNMENT EVENTS,250.00,Workforce Development,8641,Training Expenses,15/01/2021
ARGOS LTD,166.66,LAC Transitions Team,5310,Client Allowances,15/01/2021
AMZNMktplace,14.57,Ernest Bold Court,5999,Provisions (Not for resale),15/01/2021
GEN REGISTER OFFICE,-7.50,CIN/CP Social Work Unit - Area 3,9399,-,15/01/2021
Amazon.co.uk MV5RX2CO4,69.30,COVID19 Track and Trace,5969,Equipment - Purchase,14/01/2021
ARGOS LTD,-189.00,LAC Transitions Team,5310,Client Allowances,14/01/2021
Amazon.co.uk MV71F5CU4,69.30,COVID19 Track and Trace,5969,Equipment - Purchase,14/01/2021
Amazon.co.uk MV6134C94,11.55,COVID19 Track and Trace,5969,Equipment - Purchase,14/01/2021
Amazon.co.uk MV1721CH4,69.30,COVID19 Track and Trace,5969,Equipment - Purchase,14/01/2021
Amazon.co.uk MV01F5CB4,69.29,COVID19 Track and Trace,5969,Equipment - Purchase,14/01/2021
WWW.UK.INSIGHT.COM,176.38,Strategic ICTS (ICT Serv Budget),5964,-,14/01/2021
Amazon.co.uk MV87Z4OP4,130.09,Strategic ICTS (ICT Serv Budget),5969,-,14/01/2021
WM MORRISONS STORE,9.00,Bradley Resource Centre,5411,Cleaning Supplies and Materials,14/01/2021
NOVOTEL WOLVERHAMPTON,49.00,Mental Health Assessment & Care Mgmt,7011,-,14/01/2021
Snap  Ads,14.56,Marketing of Exhibitions,7311,R4317,14/01/2021
Twitter Online Ads,5.00,Marketing of Exhibitions,7311,R4317,14/01/2021
GOOGLE  ADS9680351324,500.00,Communications & Marketing - General,5817,R4317,14/01/2021
Dulux Decorator Centre,31.59,Technician,5198,R4007,14/01/2021
ARGOS LTD,38.94,Bradley Resource Centre,5310,Equipment - Purchase,14/01/2021
Amazon.co.uk MV92B5O74,37.98,Bradley Resource Centre,5969,Catering,14/01/2021
PREMIER INN,29.00,Regional Adoption Agency,3811,-,14/01/2021
PREMIER INN,176.00,Regional Adoption Agency,3811,-,14/01/2021
ARGOS LTD,99.00,LAC Transitions Team,5310,Client Allowances,14/01/2021
ARGOS LTD,229.00,LAC Transitions Team,5310,Client Allowances,14/01/2021
ARGOS LTD,252.94,LAC Transitions Team,5310,Client Allowances,14/01/2021
ARGOS LTD,272.94,LAC Transitions Team,5310,Client Allowances,14/01/2021
ARGOS LTD,262.95,LAC Transitions Team,5310,Client Allowances,14/01/2021
A2BGo Carz,11.80,Power2 Team,4121,Client Transport,14/01/2021
A2BGo Carz,10.30,Power2 Team,4121,Client Transport,14/01/2021
B&M 497 - HS WOLVES,179.24,LAC Transitions Accommodation,5399,Client Allowances,14/01/2021
A2BGo Carz,3.50,Youth Offending Team,4121,Client Transport,14/01/2021
A2BGo Carz,3.50,Youth Offending Team,4121,Client Transport,14/01/2021
Amazon.co.uk MV5YM1OC4,15.20,EIP Locality 1,5969,Equipment - Purchase,14/01/2021
AMZNMktplace,18.32,Trading Standards,5999,Equipment - Purchase,14/01/2021
SAINSBURYS SACAT (2340,33.33,Duke Street Bungalows,5411,Equipment - Purchase,14/01/2021
AMZNMKTPLACE AMAZON.CO,66.35,LAC Transitions Accommodation,5999,Client Allowances,14/01/2021
ROYAL MAIL,170.00,Inclusion Support,9402,Comms - Postage,14/01/2021
ROYAL MAIL,170.00,Inclusion Support,9402,Comms - Postage,14/01/2021
AMZNMktplace,11.63,Specialist Support Service - North,5999,Equipment - Purchase,14/01/2021
WWW.AVPARTMASTER.NET,173.99,Music Support Team,7622,Equipment - Purchase,14/01/2021
ARGOS LTD,269.99,EIP Locality 7,5310,Grant Payments,14/01/2021
TVLICENSING.CO.UK,150.00,LAC Transitions Team,7392,Client Allowances,13/01/2021
AMZNMktplace,23.06,COVID19 Track and Trace,5999,Equipment - Purchase,13/01/2021
AMZNMktplace,23.06,COVID19 Track and Trace,5999,Equipment - Purchase,13/01/2021
AMZNMktplace,23.05,COVID19 Track and Trace,5999,Equipment - Purchase,13/01/2021
AMZNMktplace,23.05,COVID19 Track and Trace,5999,Equipment - Purchase,13/01/2021
AMZNMktplace,11.52,COVID19 Track and Trace,5999,Equipment - Purchase,13/01/2021
AMZNMktplace,23.06,COVID19 Track and Trace,5999,Equipment - Purchase,13/01/2021
AMZNMktplace,23.05,COVID19 Track and Trace,5999,Equipment - Purchase,13/01/2021
AMZNMktplace,23.05,COVID19 Track and Trace,5999,Equipment - Purchase,13/01/2021
AMZNMktplace,23.06,COVID19 Track and Trace,5999,Equipment - Purchase,13/01/2021
AMZNMktplace,34.91,COVID19 Track and Trace,5999,Equipment - Purchase,13/01/2021
AMZNMktplace,23.05,COVID19 Track and Trace,5999,Equipment - Purchase,13/01/2021
AMZNMktplace,23.06,COVID19 Track and Trace,5999,Equipment - Purchase,13/01/2021
AMZNMktplace,11.63,COVID19 Track and Trace,5999,Equipment - Purchase,13/01/2021
AMZNMktplace,23.05,COVID19 Track and Trace,5999,Equipment - Purchase,13/01/2021
AMZNMktplace,23.05,COVID19 Track and Trace,5999,Equipment - Purchase,13/01/2021
Amazon.co.uk MJ8W34YJ4,92.40,COVID19 Track and Trace,5969,Equipment - Purchase,13/01/2021
Amazon.co.uk MJ8WQ9YV4,92.39,COVID19 Track and Trace,5969,Equipment - Purchase,13/01/2021
Amazon.co.uk MJ2W66YG4,92.40,COVID19 Track and Trace,5969,Equipment - Purchase,13/01/2021
Amazon.co.uk MJ6LK6YU4,11.55,COVID19 Track and Trace,5969,Equipment - Purchase,13/01/2021
NOVOTEL WOLVERHAMPTON,153.00,Mental Health Assessment & Care Mgmt,7011,-,13/01/2021
NOVOTEL WOLVERHAMPTON,52.00,Mental Health Assessment & Care Mgmt,7011,-,13/01/2021
Snap  Ads,14.53,Marketing of Exhibitions,7311,R4317,13/01/2021
FACEBK 2UDLUYEAR2,500.00,Communications & Marketing - General,7311,R4317,13/01/2021
HOME BARGAINS WOLVERHA,2.47,LAC Transitions Accommodation,5251,Accommodation Costs,13/01/2021
SAINSBURYS 2040,10.00,Coroners,5411,Cleaning Supplies and Materials,13/01/2021
STK Shutterstock,19.00,Outdoor Events Admin,7333,Marketing \ Non-staff advertising,13/01/2021
ARGOS LTD,28.94,Private Hire Drivers,5310,Stationery,13/01/2021
ARGOS LTD,116.66,LAC Transitions Team,5310,Independant Living Allowance,13/01/2021
GEN REGISTER OFFICE,14.00,LAC Transitions Team,9399,-,13/01/2021
ROYAL BK OF SCOTLAND,200.00,Court Team,6011,Section 17,13/01/2021
A2BGo Carz,7.50,Youth Offending Team,4121,Client Transport,13/01/2021
A2BGo Carz,3.50,Power2 Team,4121,Client Transport,13/01/2021
A2BGo Carz,7.50,Youth Offending Team,4121,Client Transport,13/01/2021
A2BGo Carz,7.50,Power2 Team,4121,Client Transport,13/01/2021
A2BGo Carz,3.50,Power2 Team,4121,Client Transport,13/01/2021
A2BGo Carz,7.50,Power2 Team,4121,Client Transport,13/01/2021
Amazon.co.uk MJ98J9Y04,11.98,Youth Offending Team,5969,Books,13/01/2021
POST OFFICE COUNTER,162.00,Discretionary Fund,9402,Comms - Postage,13/01/2021
Amazon.co.uk MJ5FN8Y34,34.58,Emergency Duty Team,5969,Computing - Consumables,13/01/2021
AMZNMktplace,130.48,Trading Standards,5999,Equipment - Purchase,13/01/2021
Amazon.co.uk MJ0IY0Y84,97.55,Global Budgets,5969,Books,13/01/2021
AMZNMktplace,27.69,Inclusion Support,5999,Computing - Consumables,13/01/2021
CardtronicsUK,30.00,EIP Locality 3,6011,Grant Payments,13/01/2021
AMZNMktplace,12.33,Specialist Support Service - North,5999,Equipment - Purchase,13/01/2021
FABER MUSIC LTD,150.25,Music Support Team,5733,Books,13/01/2021
AMZNMKTPLACE AMAZON.CO,16.57,Allotments,5999,Equipment - Purchase,13/01/2021
AMZNMKTPLACE AMAZON.CO,15.82,Statutory Services (10RM),5999,Stationery,13/01/2021
AMZNMktplace,67.70,Trading Standards,5999,Equipment - Purchase,13/01/2021
ASDA SUPERSTORE,150.23,LAC Transitions Team,5411,Client Allowances,12/01/2021
HUGHES,209.14,LAC Transitions Team,5732,Client Allowances,12/01/2021
ASDA GROCERIES ONLINE,-.19,Ernest Bold Court,5411,Provisions (Not for resale),12/01/2021
ASDA GROCERIES ONLINE,48.44,Ernest Bold Court,5411,Provisions (Not for resale),12/01/2021
Amazon.co.uk MJ0414R54,14.46,COVID19 Track and Trace,5969,Cleaning Supplies and Materials,12/01/2021
ZOOM.US 888-799-9666,17.02,Literature Festival,4814,Subscriptions,12/01/2021
AMZNMktplace,57.06,Strategic ICTS (ICT Serv Budget),5999,-,12/01/2021
ONEBELOW,3.33,Car Parks Operational Staff,5411,Equipment - Purchase,12/01/2021
WILKO RETAIL LIMITED,2.29,Car Parks Operational Staff,5399,Equipment - Purchase,12/01/2021
Snap  Ads,6.71,Marketing of Exhibitions,7311,R4317,12/01/2021
NAMESCO,29.98,HR Advice,4816,R4317,12/01/2021
AMZNMktplace,128.59,Document Centre - General,5999,Materials,12/01/2021
AMZNMktplace,94.05,Document Centre - General,5999,Materials,12/01/2021
AMZNMKTPLACE AMAZON.CO,56.32,Document Centre - General,5999,Materials,12/01/2021
FARNELL,13.42,Technician,5065,R4007,12/01/2021
CUMMINGS BROTHERS LOCK,113.75,Caretakers Community Centre,7399,Fixtures and Fittings - R&M,12/01/2021
Amazon.co.uk MJ5AU1RC4,139.97,LAC Transitions Team,5969,Independant Living Allowance,12/01/2021
AMZNMKTPLACE AMAZON.CO,83.32,LAC Transitions Team,5999,Independant Living Allowance,12/01/2021
AMZNMKTPLACE AMAZON.CO,215.83,LAC Transitions Team,5999,Independant Living Allowance,12/01/2021
OAKLAND,135.00,NRPF,7011,Accommodation Costs,12/01/2021
A2BGo Carz,4.80,Power2 Team,4121,Client Transport,12/01/2021
A2BGo Carz,7.50,Youth Offending Team,4121,Client Transport,12/01/2021
A2BGo Carz,7.50,Youth Offending Team,4121,Client Transport,12/01/2021
ARGOS LTD,89.97,Cemeteries,5310,-,12/01/2021
A2BGo Carz,5.10,Power2 Team,4121,Client Transport,12/01/2021
ASDA GROCERIES ONLINE,44.60,Upper Pendeford Farm Childrens Home,5411,Provisions (Not for resale),12/01/2021
CITY OF WOLVERHAMPTON,11.00,"Court of Protection, Funerals Prot Prop",9399,Services - Fees and Charges,12/01/2021
CARVER/WOLVERHAMPTON/L,91.78,Cleaning of Buildings - General,5211,-,12/01/2021
VIRGIN MEDIA PYMTS,7.50,Community Enablement,4814,Comms - Telephone Call charges,12/01/2021
STANS SUPERSTORE,15.84,Emergency Duty Team,5411,Comms - Postage,12/01/2021
RICS SUBS UK CYBS,161.00,Apprenticeships,8699,Training Expenses,12/01/2021
KONICA MINOLTA BUSINES,109.62,Music Support Team,7399,Equipment - R & M,12/01/2021
MARKS&SPENCER PLC,35.00,CIN/CP Social Work Unit - Area 8,5411,Services - Fees and Charges,12/01/2021
Institution Of Civil,366.40,Workforce Development,8699,Training Expenses,12/01/2021
AMZNMktplace,14.16,Power2 Team,5999,Equipment - Purchase,11/01/2021
AMZNMktplace,50.32,Power2 Team,5999,Equipment - Purchase,11/01/2021
Amazon.co.uk MJ5092914,21.85,Power2 Team,5969,Equipment - Purchase,11/01/2021
Amazon.co.uk MJ25469Z4,19.55,Power2 Team,5969,Equipment - Purchase,11/01/2021
GREGGS PLC,4.55,LAC Transitions Team,5812,-,11/01/2021
POST OFFICE COUNTER,1.40,LAC Transitions Team,9402,-,11/01/2021
AMZNMKTPLACE AMAZON.CO,57.47,Strategic ICTS (ICT Serv Budget),5999,-,11/01/2021
NOVOTEL WOLVERHAMPTON,10.00,Mental Health Assessment & Care Mgmt,7011,-,11/01/2021
NOVOTEL WOLVERHAMPTON,49.00,Mental Health Assessment & Care Mgmt,7011,-,11/01/2021
ZOOM.US 888-799-9666,11.99,WV Active Marketing,4814,Subscriptions,11/01/2021
B&M 497 - HS WOLVES,114.49,LAC Transitions Team,5399,Client Allowances,11/01/2021
QUEENSWAY INTERIOR,250.00,LAC Transitions Team,5712,Client Allowances,11/01/2021
ASDA SUPERSTORE,2.50,LAC Transitions Team,5411,Client Allowances,11/01/2021
ASDA GROCERIES ONLINE,-1.05,Key to Inspiration,5411,Client Allowances,11/01/2021
WWW.BRISTOWSUTOR.C,.00,Parking Enforcement,9399,VAT,11/01/2021
ASDA GROCERIES ONLINE,146.12,Key to Inspiration,5411,Client Allowances,11/01/2021
AMZNMktplace,21.65,LAC Transitions Team,5999,Client Allowances,11/01/2021
EDMUNDSON ELECTRICAL L,55.20,Street Lighting Maintenance,5065,R4007,11/01/2021
AMZNMktplace,12.00,Bert Williams Leisure Centre,5999,Equipment - Purchase,11/01/2021
ADVANTEDGE COMMERCIAL,617.38,Bert Williams Leisure Centre,8999,Equipment - R & M,11/01/2021
ADVANTEDGE COMMERCIAL,617.38,Bert Williams Leisure Centre,8999,Equipment - R & M,11/01/2021
WM MORRISONS STORE,8.50,Ernest Bold Court,5411,Provisions (Not for resale),11/01/2021
AMZNMktplace,56.66,LAC Transitions Team,5999,Independant Living Allowance,11/01/2021
RESPONSTER PLUS PLAN,14.45,City Direct,5734,Computing - Purchase of Software,11/01/2021
ARGOS LTD,36.62,LAC Transitions Team,5310,Client Allowances,11/01/2021
ARGOS LTD,243.99,LAC Transitions Team,5310,Client Allowances,11/01/2021
ARGOS LTD,106.60,LAC Transitions Team,5310,Client Allowances,11/01/2021
A2BGo Carz,4.30,Power2 Team,4121,Client Transport,11/01/2021
A2BGo Carz,3.80,Youth Offending Team,4121,Client Transport,11/01/2021
A2BGo Carz,5.90,Youth Offending Team,4121,Client Transport,11/01/2021
A2BGo Carz,3.60,Power2 Team,4121,Client Transport,11/01/2021
A2BGo Carz,4.60,Power2 Team,4121,Client Transport,11/01/2021
POSTURITE LTD,25.57,Youth Offending Team,7399,Equipment - Purchase,11/01/2021
PO THE SCOTLANDS 2232,50.00,LAC Transitions Team,6011,Client Allowances,11/01/2021
APPLE.COM/BILL,.79,Managing Director,5815,Computing - Purchase of Software,11/01/2021
AMZNMktplace,24.55,Foundation Studies,5999,Equipment - Purchase,11/01/2021
Amazon.co.uk MJ6231UQ4,271.99,Adult Education ESOL,5969,Books,11/01/2021
AMZNMktplace,19.07,Business Support Services,5999,Equipment - Health and Safety,11/01/2021
B&M 497 - HS WOLVES,25.00,COVID 19 - Public Health,5399,Equipment - Health and Safety,11/01/2021
B&M 210 - NORTHERN QUA,15.00,COVID 19 - Public Health,5399,Equipment - Health and Safety,11/01/2021
B&M 663 - MANDER,40.00,COVID 19 - Public Health,5399,Equipment - Health and Safety,11/01/2021
B&M 663 - MANDER,26.67,COVID 19 - Public Health,5399,Equipment - Health and Safety,11/01/2021
SAINSBURYS.CO.UK,115.18,Duke Street Bungalows,5411,Provisions (Not for resale),11/01/2021
SAINSBURYS.CO.UK,139.84,Duke Street Bungalows,5411,Provisions (Not for resale),11/01/2021
AMZNMktplace,10.79,Ernest Bold Court,5999,Provisions (Not for resale),11/01/2021
SAINSBURYS (2340),21.00,Duke Street Bungalows,5411,R4010,11/01/2021
AMZNMktplace,4.16,Ernest Bold Court,5999,Provisions (Not for resale),11/01/2021
AMZNMktplace,6.27,Ernest Bold Court,5999,Provisions (Not for resale),11/01/2021
ARGOS LTD,69.95,Ernest Bold Court,5310,Fixtures and Fittings - Purchases,11/01/2021
Amazon.co.uk MJ6AG47S4,10.54,Parks - Ranger Service,5969,Equipment - Purchase,11/01/2021
SAINSBURYS.CO.UK,207.22,Duke Street Bungalows,5411,Provisions (Not for resale),11/01/2021
CITY OF WOLVERHAMPTON,40.00,Centralised External Legal Costs,9399,Stationery,11/01/2021
A2BGo Carz,10.20,LAC Transitions Team,4121,Client Transport,08/01/2021
CARPETWORLD (MIDLANDS),447.62,Looked After Team 2,5713,Client Allowances,08/01/2021
SPEEDY ASSET SERVICES,"12,335.28",COVID19 Track and Trace,7394,Equipment - Purchase,08/01/2021
HYGIENE 4 LESS,999.00,Civic Centre,2842,-,08/01/2021
AMZNMKTPLACE AMAZON.CO,69.84,Strategic ICTS (ICT Serv Budget),5999,-,08/01/2021
AMZNMKTPLACE AMAZON.CO,58.32,Strategic ICTS (ICT Serv Budget),5999,-,08/01/2021
AMZNMktplace,36.37,Waste Coll & Recycling Serv General,5999,-,08/01/2021
AMZNMktplace,36.38,Waste Coll & Recycling Serv General,5999,-,08/01/2021
AMZNMktplace,36.37,Waste Coll & Recycling Serv General,5999,-,08/01/2021
AMZNMktplace,24.16,LAC Transitions Team,5999,Independant Living Allowance,08/01/2021
ARGOS LTD,11.95,LAC Transitions Team,5310,Client Allowances,08/01/2021
ARGOS LTD,118.84,LAC Transitions Team,5310,Client Allowances,08/01/2021
WWW.CORAM.ORG.UK,22.42,Fostering Team,8398,Books,08/01/2021
A2BGo Carz,6.60,Power2 Team,4121,Client Transport,08/01/2021
A2BGo Carz,6.60,Power2 Team,4121,Client Transport,08/01/2021
Amazon Prime MJ26M6S24,6.66,Upper Pendeford Farm Childrens Home,5968,Subscriptions,08/01/2021
AMZNMktplace,19.52,Foundation Studies,5999,Equipment - Purchase,08/01/2021
SP   GATEHOUSE BOOKS,890.00,Talk English,5734,Books,08/01/2021
AMZNMKTPLACE AMAZON.CO,19.07,Business Support Services,5999,Equipment - Health and Safety,08/01/2021
Dulux Decorator Centre,101.98,Bradley Resource Centre,5198,Equipment - Purchase,08/01/2021
NOVOTEL WOLVERHAMPTON,59.00,Mental Health Assessment & Care Mgmt,7011,-,08/01/2021
NOVOTEL WOLVERHAMPTON,640.00,Mental Health Assessment & Care Mgmt,7011,-,08/01/2021
WM MORRISONS STORE,170.09,Bradley Resource Centre,5411,Provisions (Not for resale),08/01/2021
AMZ BlindsOutlet,-30.84,LAC Transitions Team,5999,-,08/01/2021
DECORATING CENTRE ONLI,19.53,Technician,5200,R4007,08/01/2021
AMZNMktplace,149.17,LAC Transitions Team,5999,Independant Living Allowance,08/01/2021
AMZNMktplace,277.07,LAC Transitions Team,5999,Independant Living Allowance,08/01/2021
AMZNMktplace,49.99,LAC Transitions Team,5999,Independant Living Allowance,08/01/2021
AMZNMktplace,31.21,LAC Transitions Team,5999,Independant Living Allowance,08/01/2021
LIDL GB WOLVERHAMPTON,-12.99,Duke Street Bungalows,5411,R4010,08/01/2021
Hobbycraft Trading Lim,150.00,Global Budgets,5970,Equipment - Purchase,08/01/2021
AMZNMktplace,58.33,Parks - Ranger Service,5999,Equipment - Purchase,08/01/2021
Amazon.co.uk MJ1EL5D14,24.68,Parks - Ranger Service,5969,Equipment - Purchase,08/01/2021
WALSALL COUNCIL,41.00,Centralised External Legal Costs,9399,Stationery,08/01/2021
AMZNMKTPLACE AMAZON.CO,12.46,Legal Services,5999,Stationery,08/01/2021
AMZNMKTPLACE AMAZON.CO,37.14,Key to Inspiration,5999,"Educ Trips, Holidays, Outings, Activity",07/01/2021
ARGOS LTD,74.29,LAC Transitions Team,5310,Client Allowances,07/01/2021
B&M 497 - HS WOLVES,14.17,Cemeteries,5399,Materials,07/01/2021
SSE,19.88,LAC Transitions Accommodation,4900,Accommodation Costs,07/01/2021
Amazon.co.uk MJ51U6DZ4,88.79,Strategic ICTS (ICT Serv Budget),5969,-,07/01/2021
AMZNMKTPLACE AMAZON.CO,9.16,Strategic ICTS (ICT Serv Budget),5999,-,07/01/2021
NOVOTEL WOLVERHAMPTON,49.00,Mental Health Assessment & Care Mgmt,7011,-,07/01/2021
NOVOTEL WOLVERHAMPTON,16.50,Mental Health Assessment & Care Mgmt,7011,-,07/01/2021
NAMESCO,34.99,Communications & Marketing - General,4816,Subscriptions,07/01/2021
ARGOS LTD,299.00,LAC Transitions Team,5310,Client Allowances,07/01/2021
B&M 497 - HS WOLVES,101.54,LAC Transitions Team,5399,Client Allowances,07/01/2021
AMZNMktplace,45.82,LAC Transitions Team,5999,Independant Living Allowance,07/01/2021
TVLICENSING.CO.UK,157.50,LAC Transitions Team,7392,Independant Living Allowance,07/01/2021
TVLICENSING.CO.UK,157.50,LAC Transitions Team,7392,Independant Living Allowance,07/01/2021
AMZNMktplace,5.65,Bradley Resource Centre,5999,Equipment - Purchase,07/01/2021
AMZNMktplace,34.95,Bradley Resource Centre,5999,Equipment - Purchase,07/01/2021
AMZNMktplace,18.32,Bradley Resource Centre,5999,Catering,07/01/2021
AMZNMktplace,29.07,Bradley Resource Centre,5999,Catering,07/01/2021
Akzonobel,256.71,Business Support Services,5198,Materials,07/01/2021
Essentra Components Li,54.73,Telecare,5251,Equipment - Purchase,07/01/2021
LIDL GB WOLVERHAMPTON,19.14,Duke Street Bungalows,5411,R4010,07/01/2021
Wix.com,93.13,Technical Support,5817,Subscriptions,07/01/2021
ARGOS LTD,50.00,Inclusion Support,5310,Equipment - Purchase,07/01/2021
ARGOS LTD,65.00,Inclusion Support,5310,Equipment - Purchase,07/01/2021
AMZNMktplace,116.50,Parks - Ranger Service,5999,Equipment - Purchase,07/01/2021
PMT ONLINE,312.19,Music Support Team,5733,Equipment - Purchase,07/01/2021
CITY OF WOLVERHAMPTON,-110.00,Centralised External Legal Costs,9399,Stationery,07/01/2021
CITY OF WOLVERHAMPTON,110.00,Centralised External Legal Costs,9399,Stationery,07/01/2021
Amazon.co.uk MJ7JV06J4,21.62,Business Support Unit,5969,Stationery,07/01/2021
AMZNMKTPLACE AMAZON.CO,4.49,Legal Services,5999,Stationery,07/01/2021
AMZNMKTPLACE AMAZON.CO,19.50,Legal Services,5999,Staff Advertising Costs,07/01/2021
AMZNMKTPLACE AMAZON.CO,4.99,Legal Services,5999,Stationery,07/01/2021
AMZNMKTPLACE AMAZON.CO,10.40,Northicote Farm,5999,Equipment - Purchase,07/01/2021
SAINSBURYS (2340),5.85,Key to Inspiration,5411,Client Allowances,06/01/2021
PP 3881CODE,.95,LAC Transitions Team,8999,Client Allowances,06/01/2021
WWW.GLASDON.COM,76.12,Cemeteries,7399,-,06/01/2021
GEN REGISTER OFFICE,14.00,LAC Transitions Team,9399,-,06/01/2021
CardtronicsUK,200.00,LAC Transitions Team,6011,Accommodation Costs,06/01/2021
W M MORRISONS.COM,174.14,Bradley Resource Centre,5411,Provisions (Not for resale),06/01/2021
HERTS FOR LEARNING LIM,119.00,LEP - Leadership & Management Programme,8299,Conference Expenses,06/01/2021
EB  HEALTHY HAPPY CURI,35.00,LEP - Leadership & Management Programme,7399,Conference Expenses,06/01/2021
AMZNMktplace,20.40,LAC Transitions Team,5999,Independant Living Allowance,06/01/2021
AMZNMktplace,57.50,LAC Transitions Team,5999,Independant Living Allowance,06/01/2021
AMZNMktplace,28.32,LAC Transitions Team,5999,Independant Living Allowance,06/01/2021
AMZNMKTPLACE AMAZON.CO,-24.92,Business Support Services,5999,Equipment - Purchase,06/01/2021
WWW.WOLVERHAMPTON.GOV.,74.95,LAC Transitions Accommodation,9399,Client Allowances,06/01/2021
TVLICENSING.CO.UK,131.25,LAC Transitions Team,7392,Client Allowances,06/01/2021
INSTITUTE OF CLERK,190.00,Workforce Development,8699,Training Expenses,06/01/2021
PAYPAL  AUTOCRAFTEQ,553.96,Covid 19 - Fleet Service,5533,Equipment - Health and Safety,06/01/2021
AMZNMktplace,8.32,Bradley Resource Centre,5999,Cleaning Supplies and Materials,06/01/2021
GSK LIQUOUR STORE,12.50,LAC Transitions Team,5921,Client Allowances,06/01/2021
OAKLAND,40.83,Destitute Plus,7011,Accommodation Costs,05/01/2021
OAKLAND,530.83,Destitute Plus,7011,Accommodation Costs,05/01/2021
AMZNMKTPLACE AMAZON.CO,14.16,Key to Inspiration,5999,Equipment - Purchase,05/01/2021
ARGOS LTD,363.75,LAC Transitions Team,5310,Client Allowances,05/01/2021
ARGOS LTD,94.29,LAC Transitions Team,5310,Client Allowances,05/01/2021
DEBENHAMS.COM,-3.49,LAC Transitions Team,5311,Independant Living Allowance,05/01/2021
NOVOTEL WOLVERHAMPTON,65.50,Mental Health Assessment & Care Mgmt,7011,-,05/01/2021
DIXONS FAMILY BUTCHERS,250.00,Bradley Resource Centre,5499,Provisions (Not for resale),05/01/2021
CARESHOP,113.48,Ernest Bold Court,5999,Cleaning Supplies and Materials,05/01/2021
OAKLAND,315.00,NRPF,7011,Accommodation Costs,05/01/2021
thetrainline.com,205.43,Fostering Team,4112,Public Transport,05/01/2021
ASDA GROCERIES ONLINE,.55,Upper Pendeford Farm Childrens Home,5411,Provisions (Not for resale),05/01/2021
ASDA GROCERIES ONLINE,110.11,Upper Pendeford Farm Childrens Home,5411,Provisions (Not for resale),05/01/2021
CITY OF WOLVERHAMPTON,16.00,Looked After Team 2,9399,Financial Assistance In Exceptional Circ,05/01/2021
SAINSBURYS.CO.UK,131.33,Key to Inspiration,5411,-,05/01/2021
Amazon Prime MJ6EA7H94,6.66,Art Gallery,5968,-,05/01/2021
ASDAN,2.35,LAC Transitions Accommodation,8299,Accommodation Costs,05/01/2021
123 REG LTD,1.00,Technical Support,5968,Subscriptions,05/01/2021
WWW.WMCA.CO.UK,791.00,Food and Health & Safety,9399,Public Transport,05/01/2021
WALSALL COUNCIL,17.00,CIN/CP Social Work Unit - Area 7,9399,Section 17,05/01/2021
SR STRATEGIC SOURCING,330.00,Workforce Development,7392,Training Expenses,05/01/2021
NATIONWIDE,200.00,Court Team,6011,-,05/01/2021
AMZNMKTPLACE AMAZON.CO,6.99,Key to Inspiration,5999,Materials,04/01/2021
ZOOM.US 888-799-9666,11.99,Marketing of Exhibitions,4814,Subscriptions,04/01/2021
DEBENHAMS.COM,-28.00,LAC Transitions Team,5311,Independant Living Allowance,04/01/2021
GOOGLE  ADS9680351324,500.00,Communications & Marketing - General,5818,R4317,04/01/2021
GOOGLE  ADS3317949200,489.69,WV Active Marketing,7372,R4317,04/01/2021
Spotify,83.52,COVID19 Track and Trace,5815,R4317,04/01/2021
AWS EMEA,"4,298.80",Strategic ICTS (ICT Serv Budget),7399,Computing - Purchase of Software,04/01/2021
ASDA GROCERIES ONLINE,-.50,Ernest Bold Court,5411,Provisions (Not for resale),04/01/2021
ASDA GROCERIES ONLINE,55.44,Ernest Bold Court,5411,Provisions (Not for resale),04/01/2021
SHARKNINJA  SCUK,329.99,Bert Williams Leisure Centre,5722,-,04/01/2021
NETFLIX.COM,11.99,Upper Pendeford Farm Childrens Home,4899,Subscriptions,04/01/2021
ZOOM.US 888-799-9666,11.99,Talk English,4814,Subscriptions,04/01/2021
SAINSBURYS 2040,77.32,Duke Street Bungalows,5411,Provisions (Not for resale),04/01/2021
CO-OP GROUP 070362,8.10,Northicote Farm,5411,Provisions (Not for resale),04/01/2021
HOME BARGAINS WOLVERHA,5.97,Key to Inspiration,5251,Client Allowances,01/01/2021
FACEBK AGBAYZJAR2,252.59,Communications & Marketing - General,7311,R4317,01/01/2021
BARCLAYS,70.00,Key to Inspiration,6011,-,01/01/2021
ICELAND,48.30,Key to Inspiration,5411,Client Allowances,01/01/2021
